{"text_format":"1","workbook":"xlsx","n_sheets":4,"sheets":["Anexo I","Anexo II","Anexo III","Anexo IV"],"not_rendered":{"charts":0,"images":1,"macros":0,"external_links":1,"defined_names":2,"comments":0,"pivot_tables":0},"unopened":[],"bounds":{"document_bytes":16777216,"sheet_cells":100000,"rows_first":2000,"rows_last":500,"rows_between":2000,"halvings":0,"cell_chars":16384,"cell_head_chars":4096},"cells_cut":0,"cells_raw":0,"read":"whole","date_system":"1900"}

{"sheet":"Anexo I","index":0,"n_rows":281,"n_cols":6,"rows_kept":281,"cut":false,"hidden":false,"merged":[[0,0,0,5],[280,0,280,4],[84,0,85,5],[4,0,5,5],[1,0,1,5],[83,0,83,4],[279,0,279,4],[2,0,2,5]]}
[]
["ANEXO I - PLANILHA DE QUANTIDADES E PREÇOS"]
[]
[]
["SERVIÇOS DE ADMINISTRAÇÃO LOCAL, EFICIENTIZAÇAO ENERGÉTICA, AMPLIAÇÃO, OPERAÇÃO, EVENTOS E MANUTENÇÃO DA ILUMINAÇÃO PÚBLICA"]
[]
["ITEM","ESPECIFICAÇÃO","UNID.","QUANT.","UNIT.","TOTAL"]
["1.1","Abertura e fechamento de cava para poste com altura de até 12m.","un.",1,113.74,{"$f":"E8*D8","v":113.74}]
["1.2","Abertura e fechamento de cava para poste com altura maior que 12m.","un.",1,114.4,114.4]
["1.3","Abertura e fechamento de vala com até 60 cm de profundidade.","m",10,91.88,918.8]
["1.4","Administração Local e Operação Informatizada","mês",12,41303,495636]
["1.5","Atualização de cadastro","m",742,16.25,12057.5]
["1.6","Base concretada para poste padrão Celesc","un.",1,230.17,230.17]
["1.7","Cadastro georeferenciado de unidade de iluminação pública.","un.",10,21.5,215]
["1.8","Construção de nicho para projetor embutido no piso","un.",1,92.22,92.22]
["1.9","Descarte controlado de lâmpadas nocivas ao meio ambiente","un.",800,1.68,1344]
["1.10","Envelopamento de eletrodutos ou cabo com concreto .","m",10,31.5,315]
["1.11","Execução de base engastada, com tubo de concreto, para poste até 10 metros de altura.","un.",1,572.96,572.96]
["1.12","Execução de base engastada, com tubo de concreto, para poste com altura maior que 10 metros e até 15 metros.","un.",1,792.28,792.28]
["1.13","Base engastada com tubo de concreto para postes com comprimento maior que 15 m","un.",1,921.77,921.77]
["1.14","Hospedagem de dados operacionais do telemonitoramento de cada unidade","un x mês",150,3.3,495]
["1.15","Instalação de armação secundaria","pç",2,38.61,77.22]
["1.16","Instalação de caixa de passagem em concreto armado, circular ou retangular, com tampa de concreto.","un.",1,36.619999999999997,36.619999999999997]
["1.17","Instalação de caixa de passagem em concreto armado, com tampa de ferro fundido, padrão Celesc","m",1,37.119999999999997,37.119999999999997]
["1.18","Instalação de chave magnética.","un.",1,29.72,29.72]
["1.19","Instalação de condutores aéreos, bitola superior a 35 mm2 e até 95mm², em rede secundária, isolados ou nús","m",10,0.89,8.9]
["1.20","Instalação de condutores isolados até 1 kV, com bitola até 35mm2, embutidos em eletrodutos, postes ou braços","m",20,19.309999999999999,386.2]
["1.21","Instalação de condutores isolados até 1 kV, singelos, duplex, triplex, ou quadruplex, aéreos, com bitola de até 50mm2.","m",20,19.309999999999999,386.2]
["1.22","Instalação de conector perfurante","un.",30,1.94,58.2]
["1.23","Instalação de conjunto de ancoragem ou de suspensão de cabo multiplexado","cj",2,56.97,113.94]
["1.24","Instalação de Controlador de Grupo de luminárias, incluindo o projeto da rede de comunicação de dados, estudos de localização do concentrador, configuração e testes de comunicação de todas as unidades","un.",1,18849.16,18849.16]
["1.25","Instalação de Controlador Individual de luminária para telemonitoramento","un.",150,160.63,24094.5]
["1.26","Instalação de decoração natalina tipo cordão 100 lâmpadas","un.",50,8,400]
["1.27","Instalação de eletroduto aparente.","m",10,10.51,105.1]
["1.28","Instalação de eletroduto corrugado, com bitola até 4”.","m",10,105.64,1056.4000000000001]
["1.29","Instalação de enfeite natalino tipo meteoro, cascata, ou semelhante","un.",60,9.3699999999999992,562.20000000000005]
["1.30","Instalação de figura natalina","m",10,43.66,436.6]
["1.31","Instalação de haste de aterramento.","un.",5,115.44,577.20000000000005]
["1.32","Instalação de luminária aberta ou fechada, em poste da rede de distribuição de energia elétrica, em ponta de braço de até 1 metro de comprimento.","un.",10,87.66,876.6]
["1.33","Instalação de luminária fechada, em poste da rede de distribuição de energia elétrica, em ponta de braço de comprimento maior que 1 metro.","un.",{"$f":"SUM(D104:D105)","v":444},257.83999999999997,{"$f":"E40*D40","v":114480.96000000001}]
["1.34","Instalação de luminária de IP, decorativa, ou tipo pétala ou de projetor, em poste exclusivo para iluminação pública, de até 10 metros altura.","un.",2,227.75,455.5]
["1.35","Instalação de luminária de IP, decorativa, tipo pétala, ou de projetor, em poste exclusivo para iluminação pública, maior que 10 metros e até 15 metros.","un.",1,430.5,430.5]
["1.36","Instalação de mangueira (corda) luminosa com LEDs ","m",50,4.6500000000000004,232.5]
["1.37","Instalação de pára-raios 15kV","un.",3,35.42,106.26]
["1.38","Instalação de padrão de entrada de energia, em tensão secundária, em mureta de concreto, existente.","un.",1,408,408]
["1.39","Instalação de plaqueta com o número de identificação patrimonial de cada unidade de iluminação pública.","un.",100,24.48,2448]
["1.40","Instalação de poste de aço ou de concreto, de comprimento até 12metros.","un.",1,288.25,288.25]
["1.41","Instalação de poste de aço ou de concreto, de comprimento entre 12 e 15 metros.","un.",1,567.75,567.75]
["1.42","Instalação de poste de aço ou de concreto, de comprimento maior de 15 metros.","un.",1,1215,1215]
["1.43","Instalação de projetor com tecnologia de LEDs em poste com altura maior que 15m","un.",1,289,289]
["1.44","Instalação de projetor ou luminária em fachada ou outras estruturas, em altura de até 10 metros.","un.",1,199,199]
["1.45","Instalação de projetor ou luminária em fachada ou outras estruturas em altura maior que 10 metros","un.",1,221,221]
["1.46","Instalação de projetor ou luminária embutido no piso.","un.",1,257,257]
["1.47","Instalação de quadro de comando e proteção de iluminação pública, corrente nominal 20 a 70A.","un.",3,538.42999999999995,1615.29]
["1.48","Instalação de relé fotoelétrico.","un.",100,11.6,1160]
["1.49","Instalação de subestação de distribuição, 15kV, com potência nominal até 150 KVA, em poste","un.",1,1917.5,1917.5]
["1.50","Instalação mangueira luminosa","m",50,4.68,234]
["1.51","Manutenção do sistema de iluminação pública","mês",12,52240,626880]
["1.52","Medição & Verificação - Elaboração de Plano de M&V de acordo com PIMVP","un.",1,13267.5,13267.5]
["1.53","Medição & Verificação - Elaboração de Relatório de M&V de acordo com PIMVP","un.",1,7906,7906]
["1.54","Medição & Verificação - Instalação e retirada de medidor em luminária","un.",1,81210,81210]
["1.55","Pintura de poste com altura até 10m.","m",1,197.5,197.5]
["1.56","Pintura de poste com altura maior que 10 m e até 15m.","un.",1,297.5,297.5]
["1.57","Projeto executivo de figura de iluminação temática para eventos natalinos e outros","un",10,712,7120]
["1.58","Projeto executivo para iluminação de praças, pontes, viadutos, monumentos, prédios históricos, ruas, avenida, áreas de lazer, praças de esporte, passeios e outros.","un",10,46.6,466]
["1.59","Projeto executivo para iluminação de vias públicas ","un",10,36.049999999999997,360.5]
["1.60","Remoção de chave magnética ou relé fotoelétrico","un.",20,9.66,193.2]
["1.61","Remoção de conjunto de suspensão de cabo multiplexado","un.",2,9.66,19.32]
["1.62","Remoção de enfeite natalino tipo meteoro, cascata ou semelhante","un.",60,3.75,225]
["1.63","Remoção de enfeite tipo cordão","un.",50,3.1,155]
["1.64","Remoção de estrutura secundária de distribuição, por roldana","un.",2,14,28]
["1.65","Remoção de figura natalina ","m",10,17.25,{"$f":"E72*D72","v":172.5}]
["1.66","Remoção de luminária aberta ou fechada, em braço de até 1 metro de comprimento, em postes da rede de distribuição de energia elétrica energizada","un.",1,34.75,34.75]
["1.67","Remoção de luminária em braço de comprimento maior que 1 metro, em postes da rede de distribuição de energia elétrica energizada","un.",1,108.25,108.25]
["1.68","Remoção de luminária ou projetor, em altura até 10m, de postes exclusivos de iluminação publica","un.",1,92.75,92.75]
["1.69","Remoção de luminária ou projetor em altura maior que 10 e até 15 metros, em postes exclusivos de iluminação pública","un.",1,173.5,173.5]
["1.70","Remoção de mangueira luminosa","m",50,1.92,96]
["1.71","Remoção de poste com comprimento de até 10m","un.",1,90,90]
["1.72","Remoção de poste com comprimento maior que 10 e até 15 m ","un.",1,167,167]
["1.73","Remoção de poste com comprimento superior a 15 m","un.",1,555,555]
["1.74","Remoção e reconstituição de calçada ou piso com lajota, concreto ou asfalto ","m2",1,116,116]
["1.75","Remoção e reconstituição de piso com grama.","m2",1,26.5,26.5]
["1.76","Remoção de subestação em poste com potência nominal de  150 KVA","un.",1,738.5,738.5]
["TOTAL  - SERVIÇOS ( I )",null,null,null,null,{"$f":"SUM(F8:F83)","v":1429132.5}]
["MATERIAIS"]
[]
[]
["ITEM","ESPECIFICAÇÃO","UNID.","QUANT.","UNIT-BDI","TOTAL"]
["2.1","Abraçadeira de nylon autotravante, 148x3,6mm","cento",2,9.86,{"$f":"D89*E89","v":19.72}]
["2.2","Abraçadeira de nylon autotravante, 240x4,6mm","cento",882,20.37,17966.34]
["2.3","Abraçadeira de nylon autotravante, 390x7,6mm","cento",2,45.69,{"$f":"D91*E91","v":91.38}]
["2.4","Abraçadeira plástica para rede multiplexada de BT, padrão CELESC ","pç",2,12.58,{"$f":"D92*E92","v":25.16}]
["2.5","Abraçadeira tipo cunha, em aço galvanizado a fogo, cônica diâmetro 3/4\", tipo cunha","pç",2,0.78,1.56]
["2.6","Abraçadeira tipo cunha, em aço galvanizado a fogo, cônica diâmetro 1\", tipo cunha","pç",2,1.81,3.62]
["2.7","Abraçadeira tipo cunha, em aço galvanizado a fogo, cônica, diâmetro 1.1/2\", tipo cunha","pç",2,1.29,2.58]
["2.8","Abraçadeira tipo cunha, em aço galvanizado a fogo, cônica, diâmetro 1.1/4\", tipo cunha","pç",2,0.76,1.52]
["2.9","Abraçadeira tipo cunha, em aço galvanizado a fogo, cônica, diâmetro 2\", tipo cunha","pç",2,1.86,3.72]
["2.10","Alça pré-formada de distribuição para cabo de alumínio CA/CAA 2 AWG, padrão CELESC.","pç",2,3.7,7.4]
["2.11","Armação secundária de 1 estribo, com cupilha, haste dimensões 110x125mm, ± 5%, padrão CELESC.","pç",1,14.56,14.56]
["2.12","Armação secundária de 2 estribos, com haste e cupilha, dimensões 310x325mm, ± 10%, padrão CELESC.","pç",1,30.66,30.66]
["2.13","Arruela quadrada, 38x3mm, para parafuso M16, padrão CELESC.","pç",445,0.37,164.65]
["2.14","Base (tomada) para relé fotoelétrico, 220V/10ª, corpo em polipropileno estabilizado contra radiações UV, contatos em latão estanhado, suporte de aço galvanizado a fogo, Cabos de ligação na cor Preto para a fase, Vermelho para o retorno e Branco para o comum","pç",10,9.85,98.5]
["2.15","Braço para luminária, ø 25mm x 1,00m, padrão CELESC","pç",1,36.19,36.19]
["2.16","Braço para luminária, ø 33mm x 1,50m, com sapata,padrão CELESC CELESC","pç",362,70.45,25502.9]
["2.17","Braço para luminária, ø 48mm x 3,00m, com sapata, padrão CELESC","pç",82,130.11000000000001,10669.02]
["2.18","Braço ornamental/decorativo de IP em forma de núcleo na configuração de sextante, capaz de suportar 2 projetores para lâmpadas de descarga 400W de um lado e uma luminária de iluminação pública de 400W na extremidade oposta, com tirantes de sustentação e demais acessórios em aço inoxidável , para fixação em topo  de poste de aço, ref. modelo Portofino, fabricação Conipost ou similar.","pç",1,4093.05,4093.05]
["2.19","Braço / Suporte metálico em aço galvanizado a fogo pintado com tinta poliéster,  formado por tubo em forma de circunferência suportado por 2 tirantes a 180º presos ao topo do poste e dois tirantes em posição transversal fixados no poste, abaixo do suporte, para instalação de uma luminária voltada para a avenida e dois projetores voltados para a praia.","pç",1,4095.08,4095.08]
["2.20","Bucha de nylon, tipo S10, com parafuso de aço inox.","pç",1,1.1000000000000001,1.1000000000000001]
["2.21","Bucha de nylon, tipo S6, com parafuso de aço inox.","pç",1,0.33,0.33]
["2.22","Bucha de nylon, tipo S8, com parafuso de aço inox.","pç",1,0.56999999999999995,0.56999999999999995]
["2.23","Bucha e arruela de alumínio silício diâmetro 1\".","pç",1,1.57,1.57]
["2.24","Bucha e arruela de alumínio silício diâmetro 11/2\".","pç",1,2.81,2.81]
["2.25","Bucha e arruela de alumínio silício diâmetro 11/4\".","pç",1,4.09,4.09]
["2.26","Bucha e arruela de alumínio silício diâmetro 3/4\".","pç",1,0.88,0.88]
["2.27","Cabeçote de alumínio para eletroduto  diâmetro 11/2\".","pç",1,4.1100000000000003,4.1100000000000003]
["2.28","Cabeçote de alumínio para eletroduto, diâmetro 2\".","pç",1,9,9]
["2.29","Cabeçote de alumínio para eletroduto, diâmetro 3\".","pç",1,12.78,12.78]
["2.30","Cabo de alumínio multiplexado, 3x35+35mm2, isolado em XLPE, 0,6/1kV","m",50,13.34,667]
["2.31","Cabo de alumínio multiplexado, 3x50+50mm2, isolado em XLPE, 0,6/1kV ","m",50,19.36,968]
["2.32","Cabo de cobre nu, meio duro, 25,0mm2, 7 fios, padrão CELESC.","kg",5,61.04,305.2]
["2.33","Cabo de cobre unipolar, 2,5mm2, isolado em EPR ou XLPE, 0,6/1kV","m",100,1.33,{"$f":"D121*E121","v":133}]
["2.34","Cabo de cobre unipolar, 4,0mm2, isolado em EPR ou XLPE, 0,6/1kV","m",100,2.2200000000000002,222]
["2.35","Cabo de cobre unipolar, 6,0mm2, isolado em EPR ou XLPE, 0,6/1kV","m",100,2.72,272]
["2.36","Cabo de cobre unipolar, 10,0mm2, isolado em EPR ou XLPE, 0,6/1kV","m",100,4.9800000000000004,498]
["2.37","Cabo de cobre unipolar, 2,5mm2, isolado em PVC, 450/750V ","m",5000,1.06,5300]
["2.38","Cabo de cobre unipolar, 4,0mm2, isolado em PVC, 450/750V","m",100,2.25,225]
["2.39","Cabo de cobre unipolar,10,0mm2. isolado em PVC, 450/750V ","m",100,4.28,428]
["2.40","Cabo de cobre unipolar,16,0mm2, isolado em PVC, 450/750, ","m",100,6.17,617]
["2.41","Cabo de cobre unipolar, isolado em PVC, 450/750V, 25,0mm2.","m",50,10.99,549.5]
["2.42","Cabo paralelo de cobre, flexível, #  1,5mm2, 750V","m",100,1.27,127]
["2.43","Cabo paralelo de cobre, flexível, # 2,5mm2, 750V","m",100,2.79,279]
["2.44","Caixa de inspeção em concreto, dimensões: 300x300x400mm, com tampa de concreto com alça metálica","pç",1,68.989999999999995,68.989999999999995]
["2.45","Caixa de passagem em concreto armado, circular, Ø 400x500mm, com tampa.","pç",1,97.33,97.33]
["2.46","Caixa de passagem em concreto, dimensões internas de 650x410x700mm (CxLxP), padrão CELESC.","pç",1,164.2,164.2]
["2.47","Chave para comando de IP, 160/240V, 1x50A,  NA  com base para  relê fotoelétrico, padrão CELESC .","pç",1,235.12,235.12]
["2.48","Chave para comando de IP, 160/240V, 2x30A, NA (opera com relê NF), com base para relê fotoelétrico, padrão CELESC.","pç",1,352.92,352.92]
["2.49","Cinta de aço inoxidável, autotravante, dimensões 266x4,6mm.","pç",500,1.96,980]
["2.50","Cinta para poste circular, em aço galvanizado a fogo, diâmetro 190mm, padrão CELESC.","pç",3,20.94,62.82]
["2.51","Cinta para poste circular, em aço galvanizado a fogo, diâmetro 200mm, padrão CELESC.","pç",220,21.26,4677.2]
["2.52","Cinta para poste circular, em aço galvanizado a fogo, diâmetro 210mm, padrão CELESC.","pç",220,21.82,4800.3999999999996]
["2.53","Cinta para poste circular, em aço galvanizado a fogo, diâmetro 220mm, padrão CELESC.","pç",3,22.37,67.11]
["2.54","Cinta para poste circular, em aço galvanizado a fogo, diâmetro 230mm, padrão CELESC.","pç",3,26.33,78.989999999999995]
["2.55","Cinta para poste circular, em aço galvanizado a fogo, diâmetro 240mm, padrão CELESC.","pç",3,24.26,72.78]
["2.56","Cinta para poste circular, em aço galvanizado a fogo, diâmetro 250mm, padrão CELESC.","pç",3,24.54,73.62]
["2.57","Conector cunha de BT, tipo A, padrão CELESC.","pç",10,4.62,46.2]
["2.58","Conector cunha de BT, tipo B, padrão CELESC.","pç",10,4.5999999999999996,46]
["2.59","Conector cunha de BT, tipo I (cinza), padrão CELESC.","pç",10,4.4800000000000004,44.8]
["2.60","Conector cunha de BT, tipo II, (verde), padrão CELESC.","pç",440,3.12,1372.8]
["2.61","Conector cunha de BT, tipo III (vermelho), padrão CELESC.","pç",440,2.14,941.6]
["2.62","Conector cunha de BT, tipo IV (azul), padrão CELESC.","pç",10,2.12,21.2]
["2.63","Conector cunha para conexão de haste de aterramento 5/8\" e cabo de cobre  25 a 35mm2.","pç",5,7.54,37.700000000000003]
["2.64","Conector de derivação perfurante 10 - 95 x 1,5 -10mm2.","pç",445,5.15,2291.75]
["2.65","Conector de derivação perfurante 16 - 70 x 6 - 35mm2.","pç",5,10.16,50.8]
["2.66","Conector terminal para aterramento de tubo de aço galvanizado 1 1/2\"","pç",5,2.36,11.8]
["2.67","Conector para corda luminosa diâmetro 13mm, com plugue e emenda","pç",20,2.61,52.2]
["2.68","Controlador individual para telemonitoramento de unidade de iluminação pública, capaz de permitir apagar e  acender a lâmpada, reduzir o fluxo luminoso de luminárias Led (dimerização), coletar e enviar a um estação controladora os dados de grandezas elétricas da luminária (tensão, corrente, fator de potência, potência e energia consumida) através de sinais de rádio frequência, atuando por meio de protocolo de comunicação digital DALI e/ou analógica 1-10V; 220-240 V (+/-10 %); 60 Hz; todas as frequências de operação deverão ser certificadas e liberadas pela ANATEL.","pç",100,780.33,{"$f":"D156*E156","v":78033}]
["2.69","Controlador de grupo de luminárias, com capacidade de comunicação via rádio frequência com no mínimo 1.000 controladores individuais de luminárias e  transferência de dados para o servidor do sistema de central de monitoramento por modem GSM/GPRS e permitir conexão por fibra ótica ou porta Ethernet; todas as frequências de operação deverão ser certificadas e liberadas pela ANATEL; instalado em caixa para uso ao tempo, com grau de proteção contra penetração de sólidos e líquidos IP 66.","pç",1,29026.48,29026.48]
["2.70","Controlador para projetor LED RGB - Interface para integração de Sinais de Aliment. e Controle para lum. DMX/ETHERNET com tecnologia Powercore ou similar - ref ZCX400 100-240V DATA ENABLER PRO EU, fab Philips","pç",1,3623.52,3623.52]
["2.71","Mangueira luminosa de PVC transparente, 2,5W/m, no mínimo, LED de emissão de luz uniforme e de alto brilho, nas cores branca ou RGB, diâmetro da mangueira mínimo de 11mm, IP65, rolo de 100m, com os seguintes acessórios, por rolo: 10 cabos de força; 10 capas terminais para acabamento final da mangueira e 50 abraçadeiras para fixação da mangueira, ref. linha Flexiled, da Pedled, ou similar","m",50,15.53,776.5]
["2.72","Cordão luminoso com 100 LED, uso externo/interno, 220V, com ou sem pisca pisca.","pç",50,33.97,1698.5]
["2.73","Cruzeta em aço galvanizado a fogo, em formato retangular, para suporte de até 5 projetores, similares às existentes nos postes da Av. Beira Mar (manutenção)","pç",1,1080.3800000000001,1080.3800000000001]
["2.74","Curva 90º, de aço galvanizado a fogo, ø 1.1/4\", para eletroduto, com uma luva.","pç",1,19.25,19.25]
["2.75","Curva 90º, de aço galvanizado a fogo, ø 2\", para eletroduto, com uma luva.","pç",1,52.06,52.06]
["2.76","Curva 90º, de aço galvanizado a fogo, ø 3\", para eletroduto, com uma luva.","pç",1,83.09,83.09]
["2.77","Curva de PVC rígido, 90º, ø 3/4\", cor cinza, com uma luva.","pç",1,2.19,2.19]
["2.78","Curva de PVC rígido, 90º, ø 1\", cor preta, com uma luva.","pç",1,3.99,3.99]
["2.79","Curva de PVC rígido, 90º, ø 1.1/2\", cor preta, com uma luva.","pç",1,7.9,7.9]
["2.80","Disjuntor monopolar termomagnético, 15 à 30A, 2kA em 220Vca, padrão Nema.","pç",1,6.76,6.76]
["2.81","Disjuntor monopolar termomagnético, 20A, 3kA em 220Vca, padrão Nema.","pç",1,9.4600000000000009,9.4600000000000009]
["2.82","Disjuntor monopolar termomagnético, 40 à 70A, 2kA em 220Vca, padrão Nema.","pç",1,25.61,25.61]
["2.83","Disjuntor tripolar termomagnético, 20 à 50A, 5kA em 380Vca, padrão Nema.","pç",1,40.98,40.98]
["2.84","Disjuntor tripolar termomagnético, 60 à 100 A, 5kA em 380Vca, padrão Nema.","pç",1,149.6,149.6]
["2.85","DPS 12 kA IP -66","pç",10,74.38,743.8]
["2.86","DPS 45kA IP -66","pç",10,82.61,826.1]
["2.87","Driver  para Luminária de LED 500mA","pç",4,772.57,3090.28]
["2.88","Driver  para Luminária de LED 1200mA","pç",4,857.88,3431.52]
["2.89","Eletroduto corrugado, em PEAD, ø de 1 1/2\".","m",1,2.2799999999999998,2.2799999999999998]
["2.90","Eletroduto corrugado, em PEAD, ø de 2\".","m",1,3.42,3.42]
["2.91","Eletroduto corrugado, metálico, revestido em PVC, ø de 1\" 1/2\".","m",6,1.93,11.58]
["2.92","Eletroduto de aço galvanizado à fogo, tipo leve, ø 1 1/4\",  barra de 3m, com uma luva.","pç",1,52.66,52.66]
["2.93","Eletroduto de PVC rígido, ø 3/4\",  3m, cor preta, com uma luva.","pç",1,3.2,3.2]
["2.94","Eletroduto de PVC rígido, ø 1\",  3m, cor preta, com uma luva.","pç",1,5.95,5.95]
["2.95","Eletroduto de PVC rígido, ø 1 1/2\", 3m, cor preta, com uma luva.","pç",1,11.12,11.12]
["2.96","Eletroduto de PVC rígido, ø 3/4\", 3m,  cor cinza, com uma luva.","pç",1,12.17,12.17]
["2.97","Emenda para corda luminosa, 2 fios, 13mm","pç",5,2.57,12.85]
["2.98","Enfeite natalino meteoro led, efeito snowfall, 80 Leds, 80cm","pç",10,96.2,962]
["2.99","Enfeite natalino meteoro led, efeito snowfall, 120 Leds, 120cm","pç",10,124.35,1243.5]
["2.100","Enfeite natalino meteoro led, efeito snowfall, 160 Leds, 1600cm","pç",10,300.94,{"$f":"D188*E188","v":3009.4}]
["2.101","Figura luminosa temática, confeccionada em estrutura de aço 3/8\", curvada, e/ou dobrada, e/ou soldada, pintada na cor alumínio, contornada por corda ( mangueira) luminosa com LED's de alto brilho , na cor branca, vermelha, azul amarela ou verde, com 36 led's por metro, unidade  de corte a cada 2 metro, potência 2,4 W por metro, vidro a mediana de 80.000 horas, 220 V, 60 Hz, com  proteção contra radiação UV, com acessório de conexão, fixada na estrutura com fita plástica dentada, tipo TR 18,Hellerman ou similar, á cada 10 cm, com ferragens para fixação em poste ou parede de edificação, uso ao tempo (preço por metro linear)","m",10,194.63,1946.3]
["2.102","Fita de alumínio, dimensões 10x1mm,para proteção cabo de alumínio","rl",10,45.28,452.8]
["2.103","Fita auto fusão, de borracha etileno-propileno (EPR), rolo de 10 metros, para isolação primária e vedação em emendas, conexões e instalação de acessórios em fios e cabos além de vedação contra umidade.","rl",5,16.21,81.05]
["2.104","Fita isolante, rolo de 20 metros, para isolação de fios e cabos elétricos de até 750V, fabricada com filme a base de PVC e   adesivo de borracha sensível a pressão, cor preta, e resistente a raios U.V ( Ultra violeta)","rl",88,4.59,403.92]
["2.105","Fusível tipo D (diazed), 6A.","pç",2,1.49,2.98]
["2.106","Fusível tipo D (diazed), 10A.","pç",2,1.48,2.96]
["2.107","Fusível tipo D (diazed), 16A.","pç",2,1.52,3.04]
["2.108","Conjunto Fusível Diazed (D) 6A, para proteção contra curto circuito, composto por uma base para fixação com parafuso, um parafuso de ajuste, um anel de proteção um fusível e uma tampa","pç",1,52.54,52.54]
["2.109","Conjunto Fusível Diazed (D) 10A, para proteção contra curto circuito, composto por uma base para fixação com parafuso, um parafuso de ajuste, um anel de proteção um fusível e uma tampa","pç",1,52.54,52.54]
["2.110","Grampo de suspensão para cabo multiplexado, ref. modelo GSE-0501 da PLP","pç",1,58.37,58.37]
["2.111","Haste de aterramento, 5/8\" x 2,40m, formada por núcleo de aço carbono SAE 1010/1020 com revestimento de cobre eletrolítico de pureza mínima de 99,9% , espessura mínima da camada de cobre de 240µ","pç",5,24.3,121.5]
["2.112","Interruptor diferencial residual, bipolar, 25A, 30mA, 230V, 60Hz","pç",1,62.67,62.67]
["2.113","Interruptor diferencial residual, bipolar,40A, 30mA, 230V, 60Hz","pç",1,96.77,96.77]
["2.114","Isolador roldana, dimensões ø 76x80mm, em vidro ou porcelana, 1350 daN, de porcelana vidrada ou vidro recozido, padrão CELESC.","pç",2,4.8600000000000003,9.7200000000000006]
["2.115","Lâmpada estroboscópica, 6 W, 220W, E27, 50/80 ciclos por minuto","pç",5,33.369999999999997,166.85]
["2.116","Lâmpada multivapor metálico  tubular 150 W, base E40, tubo de descarga cerâmico,  temperatura de cor 4.200 K (permitindo-se variação de mais ou menos  5 %), índice de reprodução de cores 80 ou maior, fluxo luminoso 12.000 lumens ou maior, vida média 15.000 horas ou maior.","pç",2,229.31,458.62]
["2.117","Lâmpada multivapor metálico  tubular 250 W, base E40, tubo de descarga cerâmico,  temperatura de cor 5.000 K (permitindo-se variação de mais ou menos  5 %), índice de reprodução de cores 80 ou maior, fluxo luminoso 20.000 lumens ou maior, vida média 15.000 horas ou maior.","pç",5,245.16,1225.8]
["2.118","Lâmpada multivapor metálico  tubular 400 W, base E-40, tubo de descarga cerâmico,  temperatura de cor 5.000 K, índice de reprodução de cores 80 ou maior, fluxo luminoso 35.000 lumens ou maior, vida média 15.000 horas ou maior. ","pç",5,266.41000000000003,1332.05]
["2.119","Lâmpada vapor de sódio alta pressão 70 W, tubular, base E27, temperatura de cor 2000 K ou maior, fluxo luminoso 5600 lumens ou maior, vida  mediana 32.000 horas ou maior.","pç",40,41.63,1665.2]
["2.120","Lâmpada vapor de sódio alta pressão 150 W, tubular, base E40, temperatura de cor 2000 K ou maior, fluxo luminoso 15.300 lumens ou maior, vida mediana 32000 horas ou maior.","pç",10,43.19,431.9]
["2.121","Lâmpada vapor de sódio alta pressão 250 W, tubular, base E40, temperatura de cor 2000 K ou maior, fluxo luminoso 32.000 lumens ou maior, vida mediana 32000 horas ou maior.","pç",20,52.67,1053.4000000000001]
["2.122","Lâmpada vapor de sódio alta pressão 400 W, tubular, base E40, temperatura de cor 2000 K ou maior, fluxo luminoso 48.000 lumens ou maior, vida mediana 32000 horas ou maior.","pç",20,49.08,981.6]
["2.123","Luminária decorativa para lâmpada de descarga 150W, em formato semiesférico, confeccionada em chapa de alumínio repuxado, refletor interno estampado em chapa de alumínio anodizado e selado, difusor em lente plana de cristal temperado fixada por meio de parafusos imperdíveis de aço inoxidável com cabeça recartilhada, porta lâmpada E-40, suporte para fixação  e anel  em liga de alumínio fundido, encaixe  em braço  com diâmetro de até 60,3mm, pintada na cor branca, modelo Atlântica DI-750/1, fabricação Repume ou similar.","pç",1,1142.1099999999999,1142.1099999999999]
["2.124","Luminária de LED, decorativa, carcaça elíptica de alumínio injetado a alta pressão, tampa superior em alumínio repuxado, difusor em vidro liso curvo, temperado,  índice de reprodução de cor 70 ou maior, temperatura de cor 4.000 K ± 10%, fluxo luminoso mínimo de 5.500 lumens, rendimento mínimo de 90 lm/watt, fotometria assimétrica, distribuição longitudinal vertical de intensidade luminosa tipo curta, cut-off,  com driver de corrente constante incorporado, de 90  - 305 V, fator de potência 0,95, ou maior, THD menor que 20 %, proteção integral contra surto segundo norma IEEE/ANSI C62.41-1991,  Ingress Protection IP 66 do sistema ótico e IP44 do driver, sistema de  fixação lateral em tubo Ø 60,3mm com aperto por parafuso de aço inoxidável, vida útil 60.000 horas, garantia de 5 anos, pintura em poliéster em pó, na cor  a ser definida, referência modelo LEKA LE LED,  \n\n\n\n\n\n\n\n","pç",1,1848.43,1848.43]
["2.125","Luminária de LED, decorativa, carcaça elíptica de alumínio injetado a alta pressão, tampa superior em alumínio repuxado, difusor em vidro liso curvo, temperado,  índice de reprodução de cor 70 ou maior, temperatura de cor 4.000 K ± 10%, fluxo luminoso mínimo de 7.000 lumens, rendimento mínimo de 90 lm/watt, fotometria assimétrica, distribuição longitudinal vertical de intensidade luminosa tipo curta, cut-off,  com driver de corrente constante incorporado, de 90  - 305 V, fator de potência 0,95, ou maior, THD menor que 20 %, proteção integral contra surto segundo norma IEEE/ANSI C62.41-1991,  Ingress Protection IP 66 do sistema ótico e IP44 do driver, sistema de  fixação lateral em tubo Ø 60,3mm com aperto por parafuso de aço inoxidável, vida útil 60.000 horas, garantia de 5 anos, pintura em poliéster em pó, na cor  a ser definida, referência modelo HEKA LE LED.\n\n\n\n\n\n\n\n","pç",1,2143.64,2143.64]
["2.126","Luminária LED, potência máxima de 30W, iluminação pública, especificação conforme item 7.4.2 do projeto básico","pç",330,986.77,{"$f":"D214*E214","v":325634.09999999998}]
["2.127","Luminária LED, potência máxima de 45W, iluminação pública, especificação conforme item 7.4.2 do projeto básico","pç",30,1172.56,35176.800000000003]
["2.128","Luminária LED, potência máxima de 60W, iluminação pública, especificação conforme item 7.4.2 do projeto básico","pç",50,1301.92,65096]
["2.129","Luminária LED, potência máxima de 86W, iluminação pública, especificação conforme item 7.4.2 do projeto básico","pç",5,1626.69,8133.45]
["2.130","Luminária LED, potência máxima de 110W, iluminação pública, especificação conforme item 7.4.2 do projeto básico","pç",10,1723.76,17237.599999999999]
["2.131","Luminária LED, potência máxima de 160W, iluminação pública, especificação conforme item 7.4.2 do projeto básico","pç",10,2244.08,22440.799999999999]
["2.132","Luminária LED, potência máxima de 195W, iluminação pública, especificação conforme item 7.4.2 do projeto básico","pç",5,2900.72,14503.6]
["2.133","Luminária para iluminação pública, fechada, porta-lâmpada E-27, para lâmpada a vapor de sódio 70W, iluminação pública, especificação conforme item 7.4.3, do projeto básico padrão CELESC ","pç",1,79.67,{"$f":"D221*E221","v":79.67}]
["2.134","Luminária fechada para lâmpada de descarga até 400 W, porta-lâmpada E-40, difusor de vidro borosilicato, para uso com reator externo, pespecificação conforme item 7.4.3, do projeto básico padrão CELESC ","pç",1,189.72,189.72]
["2.135","Luminária decorativa para lâmpada de descarga até 150W, instalação em topo de poste 60mm de diâmetro, base/acoplamento ao poste em alumínio fundido, difusor em policarbonato transparente, cônico invertido, cobertura em alumínio estampado pintada na cor vermelha com tinta epóxi, similar ao modelo Rubi.","pç",1,900.06,900.06]
["2.136","Luminária decorativa de LED, 6000 lumens, potência máxima 50W, para instalação em topo de poste 60mm de diâmetro, base em alumínio fundido, difusor em policarbonato transparente, cônico invertido, cobertura em alumínio estampado pintada na cor vermelha com tinta epóxi, similar ao modelo Led Kobe, Rubi, da Fibrometal.","pç",1,1067.99,1067.99]
["2.137","Manta termocontrátil em polietileno reticulado, para recomposição da isolação em emendas de derivação de cabos de baixa tensão com seção de 10 à 16 mm² no tronco e 2,5 à 35 mm² na derivação, ref. CTEBM 34/10/150, marca Raychem, fab. Tyco ou similar.","pç",1,119.61,119.61]
["2.138","Luminária tipo decorativa com tecnologia de LED, em formato cônico invertido composta por uma base e três braços de sustentação do grupo ótico e compartimento de equipamentos elétricos auxiliares, confeccionado em alumínio injetado a alta pressão e tampa de cobertura com diâmetro de 647mm admitindo-se variação de até 10%, confeccionada em alumínio repuxado, pintada eletrostaticamente com tinta poliester, na cor verde RAL 6003 ou outra a ser definida no pedido,  eficácia luminosa mínima de 100 lm/w, 32 LED's de alta potência em material sintético resistente a impactos, fluxo luminoso 6500 lumens ou maior, potência máxima do sistema de 55 W,  grau de proteção contra penetração de sólidos e líquidos IP 66, grau de proteção contra choques mecânicos IK 8, com driver  incorporado,  montagem em poste com topo Ø 60mm alimentação 220V,  ref. modelo ISLA LED, fab. Schréder","pç",1,2893.38,2893.38]
["2.139","Núcleo de aço galvanizado à fogo, para 1 luminária tipo pétala, para instalação em poste com diâmetro no topo de 60mm, pintado na cor cinza ou outra a ser definida.","pç",1,186.55,186.55]
["2.140","Núcleo de aço galvanizado à fogo, para 2 luminárias tipo pétala, para instalação em poste com diâmetro no topo de 60mm, pintado na cor cinza ou outra a ser definida.","pç",1,226.09,226.09]
["2.141","Núcleo central para suporte de 3 luminárias tipo pétala, para fixação em topo de poste de diâmetro de 114mm, diâmetro dos braços de 60mm, construído em aço galvanizado a fogo, com parafusos em aço inoxidável.","pç",1,137.69999999999999,137.69999999999999]
["2.142","Olhal para parafuso, em aço galvanizado a fogo,5000daN - padrão CELESC","pç",5,9.5399999999999991,47.7]
["2.143","Parafuso cabeça abaulada, galvanizado a fogo, 16x45mm, com porca e arruela, padrão CELESC.","pç",440,1.92,844.8]
["2.144","Parafuso cabeça abaulada, galvanizado a fogo, 16x70mm, com porca e arruela, padrão CELESC.","pç",440,3.28,1443.2]
["2.145","Parafuso cabeça quadrada, galvanizado a fogo, 16x125mm, com porca e arruela, padrão CELESC.","pç",5,5.01,25.05]
["2.146","Parafuso cabeça quadrada, galvanizado a fogo, 16x250mm, com porca e arruela, padrão CELESC.","pç",5,5.28,26.4]
["2.147","Parafuso cabeça quadrada, galvanizado a fogo, 16x300mm, com porca e arruela, padrão CELESC","pç",440,6.7,2948]
["2.148","Parafuso cabeça quadrada, galvanizado a fogo, 16x400mm, com porca e arruela, padrão CELESC","pç",5,8.93,44.65]
["2.149","Plaqueta de alumínio, dimensões mínimas de  120x30x0,8mm, letras e/ou números com tamanho de 25 x 15 (altura x largura) gravadas em relevo com rasgos ou furos nas laterais para fixação.","pç",100,3.78,378]
["2.150","Poste de concreto para iluminação pública, conicidade reduzida, diâmetro de topo 114 mm, com janela de inspeção para até 4 fusíveis tipo D, a 1,0m do solo, altura total 13m, resistência no topo 300 daN,  padrão CELESC.","pç",1,3805.91,3805.91]
["2.151","Poste de concreto, seção circular, 10m/300daN, padrão CELESC.","pç",1,1421.65,1421.65]
["2.152","Poste de concreto, DT, 9m/300daN, padrão CELESC.","pç",1,842.39,842.39]
["2.153","Poste de concreto, seção circular, 9m/300daN, padrão CELESC.","pç",1,1146.44,1146.44]
["2.154","Poste de concreto, seção duplo T, 10m/300daN, padrão CELESC.","pç",1,1096.48,1096.48]
["2.155","Poste de concreto, (kit postinho) 7m, para medição trifásica, com caixa de medidor e disjuntor embutidas, padrão Celesc","pç",1,2141.1999999999998,2141.1999999999998]
["2.156","Postes reto em aço galvanizado a fogo (espessura mínima da camada de zinco 100 microns), tipo cônico continuo, encaixe da luminária com Ø 60mm, com 4 metros de altura livre, base tipo engastada, janela de inspeção para fusíveis tipo D, pintado na cor branco RAL 9003, ref. modelo PRC40E, fab. Metalsinter","pç",1,918.06,918.06]
["2.157","Poste metálico reto, acabamento em aço galvanizado à fogo (espessura mínima camada de zinco 100 microns), tipo cônico contínuo, base engastada, resistente a ventos de até 100km/h, altura livre acima do solo 5 m, diâmetro no topo 60mm, com janela de inspeção para fusível tipo D.","pç",1,1086.47,1086.47]
["2.158","Poste metálico reto, acabamento em aço galvanizado à fogo (espessura mínima camada de zinco 100 microns), tipo cônico contínuo, base engastada, resistente a ventos de até 100km/h, altura livre acima do solo 8 m, diâmetro no topo 60mm, com janela de inspeção para fusível tipo D.","pç",1,1655.12,1655.12]
["2.159","Poste metálico reto, acabamento em aço galvanizado à fogo (espessura mínima camada de zinco 100 microns), tipo cônico contínuo, base engastada, resistente a ventos de até 100km/h, altura livre acima do solo 10m, diâmetro no topo 60mm, com janela de inspeção para fusível tipo D.","pç",1,2784.9,2784.9]
["2.160","Poste metálico reto, acabamento em aço galvanizado à fogo (espessura mínima da camada de zinco 100 microns), tipo telecônico, base  tipo flangeada, resistente a ventos de até 100km/h, altura livre acima do solo 10m, diâmetro no topo 60mm, com janela de inspeção para fusível tipo D.","pç",1,2638.25,2638.25]
["2.161","Poste metálico reto, decorativo, com dois braços para fixação de luminárias em sentidos o postos no topo, base flangeada, acabamento em aço galvanizado à fogo (espessura mínima da camada de zinco 100 microns), com pintura eletrostática em poliéster, 4m.","pç",1,1728.5,1728.5]
["2.162","Projetor circular de uso subterrâneo, com LED's de alta potência, fluxo luminoso de 600 lumens no mínimo, potência máxima do sistema 20W, com abertura do facho 60 graus, temperatura de cor 3.000K (+/- 10%), alimentação 100-240V/50-60Hz, com driver incluso, moldura de acabamento no piso em alumínio fundido, pintado na cor preta ou cinza, ou em aço inox, cobertura ótica em vidro transparente, grau de proteção IP 67, grau de proteção contra choques mecânicos IK 10, vida útil 50.00 horas L70 @ 25ºC, ref. Modelo Vaya Uplite BBP330, fab. Philips.","pç",1,1611.56,1611.56]
["2.163","Projetor de LED para iluminação de grandes áreas,127 a 270 Volts,  20000 lumens mínimos, rendimento mínimo 100 lumens/watt, distribuição assimétrica, 5000ºK, IRC > 80, grau de proteção IP 67, corpo em alumínio, vida útil de 70.000horas, proteção interna anti surto de  até 6 KV, garantia mínima de 5 anos, fixação em suporte tipo U com indicador de ângulo de inclinação, pintura poliéster em cor a ser definida, com teste anticorrosão de 1000horas com spray de sal, adequado para uso em sistema de telemonitoramento, protocolo de comunicação digital DALI e/ou analógica 1-10V ","pç",1,2140.41,2140.41]
["2.164","Projetor retangular, com LED's de alto brilho, RGB, facho 20g, fluxo 3.500lm com todas as cores saturadas,\nIP66, IK06, peso 7.5kg, na cor cinza escuro - RAL7043, com vidro temperado, 100-277V, potência nominal 105W., ref. VAYA FLOOD - Modelo HP","pç",1,4961.49,4961.49]
["2.165","Projetor retangular para lâmpada vapor de sódio ou vapor metálico 250/400W, porta-lâmpada  E-40, corpo em alumínio injetado, com alojamento para equipamentos auxiliares, pintura na cor cinza, refrator em vidro plano temperado,  refletor em alumínio polido quimicamente, anodizado e selado, grau de proteção do conjunto ótico IP-65. ","pç",5,423.57,{"$f":"D253*E253","v":2117.85}]
["2.166","Projetor retangular para lâmpadas de descarga até 400W, porta lâmpada E-27 ou E-40, corpo refletor em alumínio anodizado e selado, laterais em liga de alumínio fundido, difusor em lente plana de cristal temperado, alça suporte em aço galvanizado.","pç",2,124.09,248.18]
["2.167","Quadro de comando e proteção de iluminação pública, trifásico 30A, em alumínio, tipo sobrepor, uso externo, contendo: 1 disjuntor tripolar 30A, 1 contator tripolar 30A, em AC3, 380V, 1 chave comutadora 3 posições (manual, desliga, automático), 1 relê fotoelétrico, com base, 1 conjunto fusível Diazed 2A, identificações e barramentos.","pç",1,3111.3,3111.3]
["2.168","Quadro de comando e proteção de iluminação pública, trifásico 50A, em alumínio, tipo sobrepor, uso externo, contendo: 1 disjuntor tripolar 50A, 1 contator tripolar 50A, em AC3, 380V, 1 chave comutadora  3 posições (manual, desliga, automático),  1 relê fotoelétrico, com base,  1 conjunto fusível Diazed 2A, identificações e barramentos.","pç",1,3890.78,3890.78]
["2.169","Quadro de comando e proteção de iluminação pública, trifásico 70A, em alumínio, tipo sobrepor, uso externo, contendo: 1 disjuntor tripolar 70A, 1 contator tripolar 70A, em AC3, 380V, 1 chave comutadora  3 posições (manual, desliga, automático),  1 relê fotoelétrico, com base,  1 conjunto fusível Diazed 2A, identificações e barramentos.","pç",1,4472.82,4472.82]
["2.170","Quadro de medição monofásico, de sobrepor, padrão CELESC.","pç",1,325.29000000000002,325.29000000000002]
["2.171","Quadro de medição trifásico, de sobrepor, padrão CELESC.","pç",1,540.74,540.74]
["2.172","Reator interno, perda máxima de 18W, para lâmpada a vapor de sódio, 150W, 220V, 60Hz, com ignitor, alto fator de potência, padrão CELESC.","pç",10,81.99,819.9]
["2.173","Reator interno, perda máxima de 24W, para lâmpada a vapor de sódio, 250W, 220V, 60Hz, com ignitor, alto fator de potência,  padrão CELESC.","pç",20,107.4,2148]
["2.174","Reator interno, perda máxima de 32W, para lâmpada a vapor de sódio, 400W, 220V, 60Hz, com ignitor, alto fator de potência,  padrão CELESC.","pç",10,146.58000000000001,1465.8]
["2.175","Reator interno, perda máxima de 22W, para lâmpada multi vapor metálico, 150W, 220V, 60Hz, com ignitor, alto fator de potência, padrão PROCEL/ENCE.","pç",20,82.82,1656.4]
["2.176","Reator interno, perda máxima de 30W, para lâmpada multi vapor metálico, 250W, 220V, 60Hz, com ignitor, alto fator de potência, padrão PROCEL/ENCE.","pç",20,107.12,2142.4]
["2.177","Reator interno, perda máxima de 38W, para lâmpada multi vapor metálico, 400W, 220V, 60Hz, com ignitor, alto fator de potência, padrão PROCEL/ENCE.","pç",20,146.58000000000001,2931.6]
["2.178","Reator para uso externo, perda máxima de 10W, para lâmpada de vapor de sódio, 70W, 220V, 60Hz, com ignitor, alto fator de potência, acabamento em aço galvanizado à fogo, padrão CELESC.","pç",7,77.72,544.04]
["2.179","Reator para uso externo, perda máxima de 17W, para lâmpada de vapor de sódio, 150W, 220V, 60Hz, com ignitor, alto fator de potência, acabamento em aço galvanizado à fogo, padrão CELESC.","pç",10,99.67,996.7]
["2.180","Reator para uso externo, perda máxima de 24W, para lâmpada de vapor de sódio, 250W, 220V, 60Hz, com ignitor, alto fator de potência, acabamento em aço galvanizado à fogo, padrão CELESC.","pç",20,134.12,2682.4]
["2.181","Reator para uso externo, perda máxima de 31W, para lâmpada de vapor de sódio, 400W, 220V, 60Hz, com ignitor, alto fator de potência, acabamento em aço galvanizado à fogo, padrão CELESC.","pç",20,163.6,3272]
["2.182","Receptáculo (soquete) de porcelana E-27, 250V, 4A.","pç",20,4.0199999999999996,80.400000000000006]
["2.183","Receptáculo (soquete) de porcelana E-40, 600V, 16A.","pç",10,6.87,68.7]
["2.184","Relé foto eletrônico, NF, tampa em policarbonato, estabilizado contra radiações UV 1.800 VA, tempo de retardo de 3 a 5s e durabilidade dos contatos(numero de operações) maior de 15000, grau de proteção IP 67, em conformidade com a NBR 5123 .","pç",500,20.47,10235]
["2.185","Sapatilha em aço galvanizado a fogo 5000dan padrão CELESC","pç",1,2.2400000000000002,2.2400000000000002]
["2.186","Suporte metálico, em aço galvanizado a fogo, formato retangular, para 3 projetores na parte superior e 2 projetores na parte inferior, similar aos existentes nos postes de iluminação da orla na rua 165,  (manutenção)","pç",1,554.88,554.88]
["2.187","Suporte para fusível, confeccionado em aço galvanizado à fogo, com tampa, para instalação em poste de concreto.","pç",1,20.36,20.36]
["2.188","Tampa de ferro fundido nodular, 70 x 46 cm, 12,5 ton., classe B125, com moldura (aro), padrão CELESC","pç",1,339.22,339.22]
["2.189","Tubo de aço, galvanizado a fogo, tipo pesado, diâmetro de 2 1/2\", em barra de 6m, padrão CELESC.","pç",1,381.18,381.18]
["2.190","Tubo de aço, galvanizado a fogo, tipo pesado, diâmetro de 2\", em barra de 6m, padrão CELESC.","pç",1,295.44,295.44]
["2.191","Tubo de aço, galvanizado a fogo, tipo pesado, diâmetro de 3\", em barra de 6m, padrão CELESC.","pç",1,349.39,349.39]
["TOTAL MATERIAIS ( II )",null,null,null,null,{"$f":"SUM(F89:F279)","v":809414.5}]
["TOTAL GERAL ( I + II )",null,null,null,null,{"$f":"F280+F84","v":2238547}]

{"sheet":"Anexo II","index":1,"n_rows":10,"n_cols":14,"rows_kept":10,"cut":false,"hidden":false,"merged":[[0,0,0,13],[3,1,3,12],[3,13,4,13],[3,0,4,0]]}
["ANEXO II - CRONOGRAMA DE DESEMBOLSO"]
[]
[]
["ATIVIDADES","MÊS",null,null,null,null,null,null,null,null,null,null,null,"TOTAL"]
[null,1,2,3,4,5,6,7,8,9,10,11,12]
["SERVIÇOS DE ADMINISTRAÇÃO LOCAL E OPERAÇÃO INFORMATIZADA",{"$f":"'Anexo I'!E11","v":41303},{"$f":"B6","v":41303},{"$f":"C6","v":41303},41303,41303,41303,41303,41303,41303,41303,41303,41303,{"$f":"SUM(B6:M6)","v":495636}]
["SERVIÇOS DE MANUTENÇÃO",{"$f":"'Anexo I'!E58","v":52240},{"$f":"B7","v":52240},{"$f":"C7","v":52240},52240,52240,52240,52240,52240,52240,52240,52240,52240,{"$f":"SUM(B7:M7)","v":626880}]
["SERVIÇOS DE AMPLIAÇÃO E EFICIENTIZAÇAO",{"$f":"ROUND(('Anexo I'!$F$84-$N$6-$N$7)/12,2)","v":25551.38},{"$f":"ROUND(('Anexo I'!$F$84-$N$6-$N$7)/12,2)","v":25551.38},{"$f":"ROUND(('Anexo I'!$F$84-$N$6-$N$7)/12,2)","v":25551.38},{"$f":"ROUND(('Anexo I'!$F$84-$N$6-$N$7)/12,2)","v":25551.38},{"$f":"ROUND(('Anexo I'!$F$84-$N$6-$N$7)/12,2)","v":25551.38},{"$f":"ROUND(('Anexo I'!$F$84-$N$6-$N$7)/12,2)","v":25551.38},{"$f":"ROUND(('Anexo I'!$F$84-$N$6-$N$7)/12,2)","v":25551.38},{"$f":"ROUND(('Anexo I'!$F$84-$N$6-$N$7)/12,2)","v":25551.38},{"$f":"ROUND(('Anexo I'!$F$84-$N$6-$N$7)/12,2)","v":25551.38},{"$f":"ROUND(('Anexo I'!$F$84-$N$6-$N$7)/12,2)","v":25551.38},{"$f":"ROUND(('Anexo I'!$F$84-$N$6-$N$7)/12,2)","v":25551.38},{"$f":"'Anexo I'!$F$84-$N$6-$N$7-SUM(B8:L8)","v":25551.32},{"$f":"SUM(B8:M8)","v":306616.5}]
["MATERIAIS ",{"$f":"ROUND('Anexo I'!$F$280/12,2)","v":67451.210000000006},{"$f":"ROUND('Anexo I'!$F$280/12,2)","v":67451.210000000006},{"$f":"ROUND('Anexo I'!$F$280/12,2)","v":67451.210000000006},{"$f":"ROUND('Anexo I'!$F$280/12,2)","v":67451.210000000006},{"$f":"ROUND('Anexo I'!$F$280/12,2)","v":67451.210000000006},{"$f":"ROUND('Anexo I'!$F$280/12,2)","v":67451.210000000006},{"$f":"ROUND('Anexo I'!$F$280/12,2)","v":67451.210000000006},{"$f":"ROUND('Anexo I'!$F$280/12,2)","v":67451.210000000006},{"$f":"ROUND('Anexo I'!$F$280/12,2)","v":67451.210000000006},{"$f":"ROUND('Anexo I'!$F$280/12,2)","v":67451.210000000006},{"$f":"ROUND('Anexo I'!$F$280/12,2)","v":67451.210000000006},{"$f":"'Anexo I'!$F$280-SUM(B9:L9)","v":67451.19},{"$f":"SUM(B9:M9)","v":809414.5}]
["DESEMBOLSO MENSAL",{"$f":"B9+B8+B7+B6","v":186545.59},{"$f":"C9+C8+C7+C6","v":186545.59},186545.59,186545.59,186545.59,186545.59,186545.59,186545.59,186545.59,186545.59,186545.59,186545.51,{"$f":"SUM(N6:N9)","v":2238547}]

{"sheet":"Anexo III","index":2,"n_rows":60,"n_cols":4,"rows_kept":60,"cut":false,"hidden":false,"merged":[[0,0,0,2],[41,0,41,3],[3,0,3,2],[5,0,5,2],[16,0,16,2],[28,0,28,2],[35,0,35,2],[39,0,39,1]]}
["ANEXO III - COMPOSIÇÃO DOS ENCARGOS SOCIAIS E DO BDI"]
[]
[]
["ENCARGOS SOCIAIS - MENSALISTA - SEM DESONERAÇÃO"]
["CÓDIGO","DESCRIÇÃO","%"]
["GRUPO A"]
["A1","INSS",0.2]
["A2","SESI",1.4999999999999999E-2]
["A3","SENAI",0.01]
["A4","INCRA",2E-3]
["A5","SEBRAE",6.0000000000000001E-3]
["A6","Salário Educação",2.5000000000000001E-2]
["A7","Seguro Contra Acidentes de Trabalho",0.03]
["A8","FGTS",0.08]
["A9","SECONCI",0.01]
["A","Total",0.378]
["GRUPO B "]
["B1","Repouso Semanal Remunerado","Não incide"]
["B2","Feriados","Não incide"]
["B3","Auxílio Enfermidade",7.1000000000000004E-3]
["B4","13º Salário",8.3299999999999999E-2]
["B5","Licença Paternidade",5.0000000000000001E-4]
["B6","Faltas Justificadas",5.5999999999999999E-3]
["B7","Dias de chuvas","Não incide"]
["B8","Auxílio Acidentes de Trabalho",8.9999999999999998E-4]
["B9","Férias Gozadas",6.1499999999999999E-2]
["B10","Salário Maternidade",2.0000000000000001E-4]
["B","Total",0.15920000000000001]
["GRUPO C "]
["C1","Aviso Prévio Indenizado",3.6700000000000003E-2]
["C2","Aviso Prévio Remunerado",8.9999999999999998E-4]
["C3","Férias Indenizadas",4.1200000000000001E-2]
["C4","Depósoito Recisão Sem Justa Causa",3.6200000000000003E-2]
["C5","Indenização Adicional",3.0999999999999999E-3]
["C","Total",0.1181]
["GRUPO D \n(Incidência Acumulativa)"]
["D1","Reincidência do Grupo A sobre Grupo B",6.0199999999999997E-2]
["D2","Reincidência do Grupo A sobre Aviso Prévio Trabalhado e Reincidência do FGTS sobre Aviso Prévio Indenizado",3.3E-3]
["D","Total",6.3500000000000001E-2]
["TOTAL ( A+B+C+D)",null,0.71879999999999999]
[]
["BDI - BENEFÍCIOS E DESPESAS INDIRETAS"]
["ABREV","COMPONENTTE","SERVIÇOS","DIFERENCIADO PARA MATERIAIS"]
["AC","Administração Central",7.9299999999999995E-2,4.4900000000000002E-2]
["R","Margem de Risco",1.9699999999999999E-2,8.8999999999999999E-3]
["SG","Seguros e Garantias",5.5999999999999999E-3,8.2000000000000007E-3]
["DF","Despesas Financeiras",1.11E-2,1.11E-2]
["I","TRIBUTOS",6.6500000000000004E-2,3.6499999999999998E-2]
[null,"ISS",0.03,0]
[null,"PIS",6.4999999999999997E-3,6.4999999999999997E-3]
[null,"COFINS",0.03,0.03]
[null,"CPRB",0,0]
["L","LUCRO",9.5100000000000004E-2,6.2199999999999998E-2]
[null,"BDI TOTAL ",0.27860000000000001,0.18379999999999999]
[null,"Notas:"]
[null,"1) Valores máximos de BDI e Encargos Sociais aceitáveis na licitação"]
[null,"2) Fórmula para cálculo do BDI"]
[]
[]
[null,"3) Se adotar CPRB no BDI, zerar INSS nos encargos sociais"]

{"sheet":"Anexo IV","index":3,"n_rows":108,"n_cols":6,"rows_kept":108,"cut":false,"hidden":false,"merged":[[60,0,60,5],[59,0,59,5],[96,1,96,3],[96,4,96,5],[81,1,81,3],[81,4,81,5],[63,0,63,5],[64,1,64,3],[64,4,64,5],[95,0,95,5],[80,0,80,5],[4,1,4,3],[4,4,4,5],[40,1,40,3],[40,4,40,5],[0,0,0,5],[35,0,35,5],[39,0,39,5],[36,0,36,5],[3,0,3,5]]}
["ANEXO IV - COMPOSIÇÃO DE PREÇOS UNITÁRIOS"]
[]
[]
[" COMPOSIÇÃO DE PREÇO UNITÁRIO PARA ADMINISTRAÇÃO LOCAL E OPERAÇÃO INFORMATIZADA"]
["ITEM","DESCRIÇÃO",null,null,"PREÇO"]
[1,"PESSOAL","UN","QUANT.","P. UNIT. (R$)","P. TOTAL (R$)"]
["1.1","Gerente Geral do Contrato (cód. SINAPI: 90768) (1 profissional x 176 horas por mês).","h",176,78.209999999999994,{"$f":"E7*D7","v":13764.96}]
["1.2","Eletrotécnico (cód. SINAPI:88266) (1 profissional x 176 horas por mês).","h",176,38.46,{"$f":"E8*D8","v":6768.96}]
[null,"CUSTO PESSOAL",null,null,null,{"$f":"SUM(F7:F8)","v":20533.919999999998}]
[2,"VEÍCULOS/EQUIPAMENTOS","UN","QUANT.","P. UNIT. (R$)","P. TOTAL (R$)"]
["2.1","Automóvel","h",88,40.54,{"$f":"E11*D11","v":3567.52}]
[null,"CUSTO DE VEÍCULOS/EQUIPAMENTOS",null,null,null,{"$f":"SUM(F11)","v":3567.52}]
[3,"LICENÇAS DE SOFTWARES  E EQUIPAMENTOS DE HARDWARE","UN","QUANT.","P. UNIT. (R$)","P. TOTAL (R$)"]
["3.1","Licença de software para gestão operacional integrada de sistema de iluminação pública, com atendimento ao munícipe.","mês",1,2652,{"$f":"E14*D14","v":2652}]
["3.2","Licença de software para telegestão de unidades de iluminação pública (inclui transmissão e armazenamento de dados).","mês",1,480,{"$f":"E15*D15","v":480}]
["3.3","Licença de software para rastreamento de veículos via internet.","mês",1,95,95]
["3.7","Tablet com tela de 8\" ou maior, conectividade 4G, Wi-fi,  memória RAM 2 GB ou maior, capcidade de armazenamento 32 GB, ou maior, câmera traseira com resolução mínima de 2MP   (2 para veículos de campo). (Depreciação 36 meses).","mês",1,55,55]
["3.8","Computador tipo desktop completo, ou notebook,  para estação de trabalho, configuração mínima: 7a. geração do processador Intel I5, ou equivalente, tela LED de 13\" ou superior, memória RAM 8GB, disco rígido de 1 TB, ou superior, 1 porta USB 3.0 e 1 porta USB 2.0, placa de rede wireless 802.11.b/g/n ou superior, ou licença de sistema operacional Windows 10 Pro, ou equivalente.(Depreciação 36 meses).","mês",1,102.64,102.64]
["3.9","Impressora multifuniconal colorida para papel formato A3 e A4. (Depreciação 36 meses).","mês",1,47.22,47.22]
[null,"CUSTO DE LICENÇAS DE SOFTWARES  E EQUIPAMENTOS DE HARDWARE",null,null,null,{"$f":"SUM(F14:F19)","v":3431.86}]
[4,"INFRAESTRUTURA","UN","QUANT.","P. UNIT. (R$)","P. TOTAL (R$)"]
["4.1","Locação de imóvel para o CCO, incluindo escritórios, almoxarifado e garagens.","mês",1,3000,{"$f":"E22*D22","v":3000}]
["4.2","Consumo de energia elétrica.","mês",1,400,{"$f":"E23*D23","v":400}]
["4.3","Consumo de água e esgoto.","mês",1,150,150]
["4.4","Telefones.","mês",1,300,300]
["4.5","Internet banda larga.","mês",1,200,200]
["4.6","Materiais de consumo (papel, canetas, tinta para impressoras, materiais de limpeza e higiene, etc.).","mês",1,100,100]
["4.7","Mobiliário para estações de trabalho e demais áreas do CCO, incluindo mesas, cadeiras, divisórias, aparelhos de ar condicionado, e tudo o mais para o perfeito funcionamento do CCO.","mês",1,100,100]
["4.8","Instalações de rede elétrica e lógica.","mês",1,200,200]
["4.9","Vigilância eletrônica.","mês",1,320,320]
[null,"CUSTO DE INFRAESTRUTURA",null,null,null,{"$f":"SUM(F22:F30)","v":4770}]
[5,"CUSTO DIRETO DO ITEM",null,null,null,{"$f":"F31+F20+F12+F9","v":32303.3}]
[6,"BDI",null,0.27860000000000001,null,{"$f":"F32*D33","v":8999.7000000000007}]
[7,"PREÇO UNITÁRIO DO SERVIÇO","MÊS",null,null,{"$f":"SUM(F32:F33)","v":41303}]
["BASE: TABELA SINAPI/CEF/IBGE - SANTA CATARINA"]
["Nota:"]
["1) Os salários adotados nas composiçoes de preços unitários (CPU) devem respeitar os pisos salariais estabelecidos pelos sindicatos da categoria e convenções coletivas, na data de entrega das propostas, sob pena de desclassificação."]
[]
[]
["COMPOSIÇÃO DE PREÇO UNITÁRIO PARA MANUTENÇÃO DO SISTEMA DE ILUMINAÇÃO PÚBLICA"]
["ITEM","DESCRIÇÃO",null,null,"PREÇO"]
[1,"PESSOAL","UN","QUANT.","P. UNIT. (R$)","P. TOTAL (R$)"]
[null,"Eletricista (cód. SINAPI:88264) (2 profissional x 176 horas por mês).","h",352,35.86,{"$f":"E43*D43","v":12622.72}]
[null,"Periculosidade 30%","h",0.3,{"$f":"F43","v":12622.72},{"$f":"E44*D44","v":3786.82}]
[null,"CUSTO PESSOAL",null,null,null,{"$f":"SUM(F43:F44)","v":16409.54}]
[2,"VEÍCULOS/EQUIPAMENTOS","UN","QUANT.","P. UNIT. (R$)","P. TOTAL (R$)"]
[null,"Caminhonete equipada com cesto elevatório para serviço em altura da até 10 m (CPU caminhonete)","h",176,66.2,{"$f":"E47*D47","v":11651.2}]
[null,"Equipamento para realização de serviços em alturas maiores que 10m (cód. SINAPI: 89272).","h",32,114,{"$f":"E48*D48","v":3648}]
[null,"Automóvel (CPU automóvel)","h",176,40.840000000000003,7187.84]
[null,"EPC's, conjunto de ferramentas e equipamentos para veículos de campo, conforme descrito no projeto básico.","cj",1,159.43,159.43]
[null,"EPI's para eletricistas e motoristas, conjunto de EPI's conforme descrito no projeto básico.","cj",2,100.59,201.18]
[null,"CUSTO DE VEÍCULOS/EQUIPAMENTOS",null,null,null,{"$f":"SUM(F47:F51)","v":22847.65}]
[3,"DESCARTE CONTROLADO ","UN","QUANT.","P. UNIT. (R$)","P. TOTAL (R$)"]
[null,"Lâmpada de descarga","pç",800,2,{"$f":"E54*D54","v":1600}]
[null,"CUSTO DE DESCARTE CONTROLADO",null,null,null,{"$f":"SUM(F54)","v":1600}]
[4,"CUSTO DIRETO DO ITEM",null,null,null,{"$f":"F55+F52+F45","v":40857.19}]
[5,"BDI",null,0.27860000000000001,null,{"$f":"F56*D57","v":11382.81}]
[6,"PREÇO UNITÁRIO DO SERVIÇO","MÊS",null,null,{"$f":"SUM(F56:F57)","v":52240}]
["BASE: TABELA SINAPI/CEF/IBGE - SANTA CATARINA"]
["Nota:"]
["1) Os salários adotados nas composiçoes de preços unitários (CPU) devem respeitar os pisos salariais estabelecidos pelos sindicatos da categoria e convenções coletivas, na data de entrega das propostas, sob pena de desclassificação."]
[]
[]
[" COMPOSIÇÃO DE PREÇO UNITÁRIO PARA M&V - ELABORAÇÃO DE PLANO DE M&V DE ACORDO COM PIMVP "]
["ITEM","DESCRIÇÃO",null,null,"PREÇO"]
[1,"PESSOAL","UN","QTDE","R$/un","R$  TOTAL"]
[null,"Auxiliar de escritorio (cód. SINAPI:90772) (1 profissional x 176 horas por mês).","h",160,18.54,{"$f":"E67*D67","v":2966.4}]
[null,"Eletricista (cód. SINAPI:88264) (2 profissionais).","h",160,27.47,4395.2]
[null,"Eletrotécnico (cód. SINAPI:88266) (1 profissional x 176 horas por mês).","h",160,28.46,4553.6000000000004]
[null,"Engenheiro eletricista (cód. SINAPI:91677) (1 profissional x 176 horas por mês).","h",80,101.04,8083.2]
[null,"CUSTO PESSOAL",null,"p",null,{"$f":"SUM(F67:F70)","v":19998.400000000001}]
[2,"VEÍCULOS/EQUIPAMENTOS","UN","QTDE","R$/un","TOTAL"]
[null,"Caminhonete cabine simples com motor 1.6 flex, câmbio manual, potência 101/104 cv, 2 portas - chp diurno. af_11/2015 (cód. SINAPI:92145)","CHI",1,55.32,{"$f":"E73*D73","v":55.32}]
[null,"CUSTO DE VEÍCULOS/EQUIPAMENTOS",null,"p",null,{"$f":"SUM(F73:F73)","v":55.32}]
[3,"CUSTO DIRETO DO ITEM",null,"p",null,{"$f":"F74+F71","v":20053.72}]
[4,"BDI",null,0.27860000000000001,null,{"$f":"F75*D76","v":5586.97}]
[5,"PREÇO UNITÁRIO DO SERVIÇO",null,"p",null,{"$f":"SUM(F75:F76)","v":25640.69}]
["BASE: TABELA SINAPI/CEF/IBGE - SANTA CATARINA"]
[]
[]
[" COMPOSIÇÃO DE PREÇO UNITÁRIO PARA M&V - ELABORAÇÃO DE RELATÓRIO DE M&V DE ACORDO COM PIMVP "]
["ITEM","DESCRIÇÃO",null,null,"PREÇO"]
[1,"PESSOAL","UN","QTDE","R$/un","R$  TOTAL"]
[null,"Eletrotécnico (cód. SINAPI:88266) (1 profissional x 176 horas por mês).","h",240,28.46,{"$f":"E84*D84","v":6830.4}]
[null,"Engenheiro eletricista (cód. SINAPI:91677) (1 profissional x 176 horas por mês).","h",40,101.04,4041.6]
[null,"CUSTO PESSOAL",null,"p",null,{"$f":"SUM(F84:F85)","v":10872}]
[2,"VEÍCULOS/EQUIPAMENTOS","UN","QTDE","R$/un","TOTAL"]
[null,"Automóvel - sedan - 71 a 115 cv (tabela de preços de consultoria do dnit -  dez/18)","H",48,17.89,{"$f":"E88*D88","v":858.72}]
[null,"CUSTO DE VEÍCULOS/EQUIPAMENTOS",null,"p",null,{"$f":"SUM(F88)","v":858.72}]
[3,"CUSTO DIRETO DO ITEM",null,"p",null,{"$f":"F89+F86","v":11730.72}]
[4,"BDI",null,0.27860000000000001,null,{"$f":"D91*F90","v":3268.18}]
[5,"PREÇO UNITÁRIO DO SERVIÇO",null,"p",null,{"$f":"SUM(F90:F91)","v":14998.9}]
["BASE: TABELA SINAPI/CEF/IBGE - SANTA CATARINA",null,null,"p"]
[]
[]
[" COMPOSIÇÃO DE PREÇO UNITÁRIO PARA M&V - INSTALAÇÃO E RETIRADA DE MEDIDOR EM LUMINÁRIA "]
["ITEM","DESCRIÇÃO",null,null,"PREÇO"]
[1,"PESSOAL","UN","QTDE","R$/un","R$  TOTAL"]
[null,"Eletricista (cód. SINAPI:88264) (2 profissionais).","h",480,27.47,{"$f":"E99*D99","v":13185.6}]
[null,"Encarregado geral  (cód. SINAPI:90776) (1 profissionais).","h",160,32.43,5188.8]
[null,"CUSTO PESSOAL",null,"p",null,{"$f":"SUM(F99:F100)","v":18374.400000000001}]
[2,"VEÍCULOS/EQUIPAMENTOS","UN","QTDE","R$/un","TOTAL"]
[null,"Caminhonete cabine simples com motor 1.6 flex, câmbio manual, potência 101/104 cv, 2 portas - chp diurno. af_11/2015 (cód. SINAPI:92145)","CHP",480,55.32,{"$f":"E103*D103","v":26553.599999999999}]
[null,"CUSTO DE VEÍCULOS/EQUIPAMENTOS",null,"p",null,{"$f":"SUM(F103:F103)","v":26553.599999999999}]
[3,"CUSTO DIRETO DO ITEM",null,"p",null,{"$f":"F104+F101","v":44928}]
[4,"BDI",null,0.27860000000000001,null,{"$f":"D106*F105","v":12516.94}]
[5,"PREÇO UNITÁRIO DO SERVIÇO",null,"p",null,{"$f":"SUM(F105:F106)","v":57444.94}]
["BASE: TABELA SINAPI/CEF/IBGE - SANTA CATARINA",null,null,"p"]